[Event "EYCC Girls U10 2018"]
[Site "Riga"]
[Date "2018.08.21"]
[Round "2"]
[White "Efimova, Darya"]
[Black "Shvedova, Alexandra"]
[Result "0-1"]
[ECO "C44"]
[WhiteElo "1316"]
[BlackElo "1758"]
[Annotator "NA RC"]
[PlyCount "68"]
[EventDate "2018.08.20"]
[EventType "swiss"]
[EventCountry "LAT"]
[SourceTitle "playchess.com"]
[Source "ChessBase"]
[SourceQuality "1"]
[TimeControl "40/5400+30:1800+30"]

1. e4 {[%emt 0:00:00]} e5 {[%emt 0:00:00]} 2. Nf3 {[%emt 0:00:00]} Nc6 {[%emt 0:00:00]} 3. d4 {[%emt 0:00:00]} exd4 {[%emt 0:00:00]} 4. Bc4 {[%emt 0:00:00]} Bc5 {[%emt 0:00:00]} 5. Ng5 {[%emt 0:00:00]} Nh6 {[%emt 0:00:00]} 6. Nxf7 {[%emt 0:00:10]} Nxf7 {[%emt 0:00:00]} 7. Bxf7+ {[%emt 0:00:11]} Kxf7 {[%emt 0:00:00]} 8. Qh5+ {[%emt 0:00:10]} g6 {[%emt 0:00:01]} 9. Qxc5 {[%emt 0:00:10]} d5 {[%emt 0:00:07]} 10. O-O {[%emt 0:00:06]} dxe4 {[%emt 0:04:03]} 11. Bf4 {[%emt 0:00:08]} Qe7 {[%emt 0:01:39]} 12. Qb5 {[%emt 0:02:07]} Kg7 {[%emt 0:08:10]} 13. c3 {[%emt 0:13:12]} d3 {[%emt 0:04:50]} 14. Nd2 {[%emt 0:01:23]} a6 {[%emt 0:04:33]} 15. Qb3 {[%emt 0:03:09]} Rf8 {[%emt 0:02:42]} 16. Bg3 {[%emt 0:01:17]} e3 {[%emt 0:11:00]} 17. Rfe1 {[%emt 0:09:15]} e2 {[%emt 0:02:42]} 18. c4 {[%emt 0:13:56]} Qd8 {[%emt 0:13:43]} 19. Rac1 {[%emt 0:08:52]} Rb8 {[%emt 0:02:19]} 20. Qc3+ {[%emt 0:15:14]} Kg8 {[%emt 0:01:08]} 21. b4 {[%emt 0:00:34]} Bf5 {[%emt 0:04:16]} 22. b5 {[%emt 0:02:12]} Nd4 {[%emt 0:01:52]} 23. b6 {[%emt 0:06:51]} c5 {[%emt 0:02:33]} 24. Be5 {[%emt 0:12:20]} Rc8 {[%emt 0:03:47]} 25. Qb2 {[%emt 0:04:53]} Nc2 {[%emt 0:02:38]} 26. Bg7 {[%emt 0:02:24]} Rf7 {[%emt 0:00:19]} 27. Bh6 {[%emt 0:00:43]} Nxe1 {[%emt 0:00:08]} 28. Rxe1 {[%emt 0:00:06]} Rc6 {[%emt 0:00:28]} 29. h3 {[%emt 0:02:55]} g5 {[%emt 0:03:21]} 30. g4 {[%emt 0:00:59]} Bc8 {[%emt 0:00:28]} 31. Qe5 {[%emt 0:01:24]} Rxh6 {[%emt 0:00:09]} 32. Qxc5 {[%emt 0:00:28]} Rxh3 {[%emt 0:01:52]} 33. Kg2 {[%emt 0:00:08]} Bxg4 {[%emt 0:00:42]} 34. f3 {[%emt 0:00:52]} Bf5 {[%emt 0:01:27]} 0-1

[Event "EYCC Girls U10 2018"]
[Site "Riga"]
[Date "2018.08.21"]
[Round "2"]
[White "Ciarletta, Iris"]
[Black "Zhapova, Yana"]
[Result "0-1"]
[ECO "B15"]
[WhiteElo "1303"]
[BlackElo "1733"]
[Annotator "NA RC"]
[PlyCount "130"]
[EventDate "2018.08.20"]
[EventType "swiss"]
[EventCountry "LAT"]
[SourceTitle "playchess.com"]
[Source "ChessBase"]
[SourceQuality "1"]
[TimeControl "40/5400+30:1800+30"]

1. e4 {[%emt 0:00:00]} c6 {[%emt 0:00:00]} 2. d4 {[%emt 0:00:36]} d5 {[%emt 0:00:02]} 3. Nc3 {[%emt 0:00:38]} dxe4 {[%emt 0:00:15]} 4. Nxe4 {[%emt 0:00:20]} Nf6 {[%emt 0:00:30]} 5. Nxf6+ {[%emt 0:00:57]} exf6 {[%emt 0:00:19]} 6. c3 {[%emt 0:00:56]} Bd6 {[%emt 0:00:35]} 7. Bd3 {[%emt 0:01:02]} O-O {[%emt 0:00:43]} 8. Qc2 {[%emt 0:01:02]} h6 {[%emt 0:00:38]} 9. Ne2 {[%emt 0:00:34]} Qc7 {[%emt 0:00:41]} 10. g3 {[%emt 0:01:00]} Re8 {[%emt 0:05:40]} 11. Be3 {[%emt 0:01:18]} Be6 {[%emt 0:02:51]} 12. c4 {[%emt 0:03:39]} Qa5+ {[%emt 0:07:40]} 13. Bd2 {[%emt 0:03:14]} Bb4 {[%emt 0:01:45]} 14. Bxb4 {[%emt 0:03:20]} Qxb4+ {[%emt 0:00:09]} 15. Qc3 {[%emt 0:00:08]} a5 {[%emt 0:11:52]} 16. O-O {[%emt 0:06:05]} Nd7 {[%emt 0:01:04]} 17. Rfe1 {[%emt 0:03:10]} Nb6 {[%emt 0:25:39]} 18. b3 {[%emt 0:03:47]} Bg4 {[%emt 0:03:54]} 19. Qc2 {[%emt 0:01:43]} Qe7 {[%emt 0:11:09]} 20. c5 {[%emt 0:01:33]} Nd5 {[%emt 0:01:16]} 21. Qd2 {[%emt 0:02:14]} Qd7 {[%emt 0:00:48]} 22. Nf4 {[%emt 0:03:54]} Be6 {[%emt 0:04:17]} 23. Nxe6 {[%emt 0:03:02]} fxe6 {[%emt 0:01:43]} 24. Bg6 {[%emt 0:05:30]} Red8 {[%emt 0:04:47]} 25. Rad1 {[%emt 0:07:20]} Nc7 {[%emt 0:00:42]} 26. Re3 {[%emt 0:01:38]} Nb5 27. Qd3 {[%emt 0:02:25]} Nxd4 {[%emt 0:08:14]} 28. Kg2 {[%emt 0:01:04]} Qd5+ {[%emt 0:00:15]} 29. Qe4 {[%emt 0:01:24]} Qxe4+ {[%emt 0:01:05]} 30. Rxe4 {[%emt 0:00:51]} e5 {[%emt 0:00:24]} 31. f4 {[%emt 0:00:53]} Rd5 {[%emt 0:04:17]} 32. fxe5 {[%emt 0:01:57]} fxe5 33. Rde1 {[%emt 0:00:47]} Rf8 {[%emt 0:01:38]} 34. Bh5 {[%emt 0:01:30]} Rxc5 {[%emt 0:01:07]} 35. Rxe5 {[%emt 0:01:14]} Rc2+ {[%emt 0:00:04]} 36. Kh3 {[%emt 0:00:28]} Rxa2 {[%emt 0:00:25]} 37. R1e4 {[%emt 0:04:20]} Nf5 {[%emt 0:01:23]} 38. Re8 {[%emt 0:01:11]} Nd6 {[%emt 0:00:20]} 39. Rxf8+ {[%emt 0:01:02]} Kxf8 {[%emt 0:00:04]} 40. Re6 {[%emt 0:00:00]} Nf7 {[%emt 0:00:00]} 41. Re3 {[%emt 0:01:48]} Rf2 {[%emt 0:00:53]} 42. Rd3 {[%emt 0:00:57]} Rf5 {[%emt 0:03:57]} 43. Bg4 {[%emt 0:01:47]} Rd5 {[%emt 0:02:08]} 44. Rxd5 {[%emt 0:00:23]} cxd5 {[%emt 0:00:06]} 45. Kg2 {[%emt 0:00:31]} Ne5 {[%emt 0:00:13]} 46. Bc8 {[%emt 0:01:09]} b5 {[%emt 0:01:23]} 47. Be6 {[%emt 0:00:41]} d4 {[%emt 0:00:21]} 48. Kf2 {[%emt 0:03:01]} Ke7 {[%emt 0:00:11]} 49. Bd5 {[%emt 0:00:54]} Kd6 {[%emt 0:00:07]} 50. Be4 {[%emt 0:01:05]} Kc5 {[%emt 0:00:09]} 51. Ke2 {[%emt 0:01:00]} Kb4 {[%emt 0:00:09]} 52. Bd5 {[%emt 0:00:39]} Kc3 {[%emt 0:00:23]} 53. Kd1 {[%emt 0:07:42]} d3 {[%emt 0:00:36]} 54. h3 {[%emt 0:01:46]} a4 {[%emt 0:00:40]} 55. bxa4 {[%emt 0:00:58]} bxa4 {[%emt 0:00:19]} 56. g4 {[%emt 0:00:38]} Nc4 {[%emt 0:00:50]} 57. Kc1 {[%emt 0:01:43]} d2+ {[%emt 0:00:11]} 58. Kd1 {[%emt 0:01:02]} Nb2+ {[%emt 0:00:12]} 59. Ke2 {[%emt 0:01:06]} d1=Q+ {[%emt 0:00:16]} 60. Kf2 {[%emt 0:00:49]} Qxd5 {[%emt 0:00:36]} 61. Kg3 {[%emt 0:00:35]} g5 {[%emt 0:00:29]} 62. Kh2 {[%emt 0:00:59]} Qf3 {[%emt 0:00:25]} 63. h4 {[%emt 0:01:07]} Nd1 {[%emt 0:00:21]} 64. Kg1 {[%emt 0:00:34]} Ne3 {[%emt 0:00:24]} 65. Kh2 {[%emt 0:00:40]} Qg2# {[%emt 0:00:08]} 0-1

[Event "EYCC Girls U10 2018"]
[Site "Riga"]
[Date "2018.08.21"]
[Round "2"]
[White "Gorcuk, Ozgu"]
[Black "Svergina, Sofya"]
[Result "0-1"]
[ECO "D02"]
[WhiteElo "1299"]
[BlackElo "1657"]
[Annotator "NA RC"]
[PlyCount "122"]
[EventDate "2018.08.20"]
[EventType "swiss"]
[EventCountry "LAT"]
[SourceTitle "playchess.com"]
[Source "ChessBase"]
[SourceQuality "1"]
[TimeControl "40/5400+30:1800+30"]

1. d4 Nf6 {[%emt 0:00:00]} 2. Nf3 {[%emt 0:00:00]} d5 {[%emt 0:00:06]} 3. Bf4 {[%emt 0:00:00]} c5 {[%emt 0:00:00]} 4. e3 {[%emt 0:00:00]} Nc6 {[%emt 0:00:00]} 5. c3 {[%emt 0:00:00]} e6 {[%emt 0:00:00]} 6. Nbd2 {[%emt 0:00:00]} Bd6 {[%emt 0:00:08]} 7. Bg3 {[%emt 0:00:05]} O-O {[%emt 0:00:08]} 8. Bd3 {[%emt 0:00:04]} b6 {[%emt 0:03:22]} 9. Qe2 {[%emt 0:03:07]} Be7 {[%emt 0:02:51]} 10. e4 {[%emt 0:01:18]} cxd4 {[%emt 0:01:41]} 11. cxd4 {[%emt 0:03:42]} Re8 {[%emt 0:03:46]} 12. Bb5 {[%emt 0:02:52]} Bb7 {[%emt 0:03:13]} 13. Rc1 {[%emt 0:02:22]} Rc8 {[%emt 0:00:18]} 14. Ne5 {[%emt 0:02:40]} Nxd4 {[%emt 0:02:12]} 15. Rxc8 {[%emt 0:05:42]} Qxc8 {[%emt 0:00:33]} 16. Qd1 {[%emt 0:03:34]} Nxb5 {[%emt 0:00:31]} 17. O-O {[%emt 0:06:57]} dxe4 {[%emt 0:01:51]} 18. Re1 {[%emt 0:03:05]} Rd8 {[%emt 0:01:54]} 19. Qe2 {[%emt 0:01:53]} Nd4 {[%emt 0:00:34]} 20. Qc4 {[%emt 0:02:07]} Qxc4 {[%emt 0:00:06]} 21. Ndxc4 {[%emt 0:00:12]} Ne2+ {[%emt 0:01:04]} 22. Kf1 {[%emt 0:00:54]} Nxg3+ {[%emt 0:00:08]} 23. fxg3 {[%emt 0:00:05]} Ba6 {[%emt 0:00:30]} 24. Kg1 {[%emt 0:01:20]} Bxc4 {[%emt 0:00:07]} 25. Nxc4 {[%emt 0:00:13]} Bc5+ {[%emt 0:00:19]} 26. Kf1 {[%emt 0:00:12]} Rd4 {[%emt 0:00:43]} 27. Rc1 {[%emt 0:01:34]} g6 {[%emt 0:00:42]} 28. Ke2 {[%emt 0:00:44]} Nd7 {[%emt 0:01:14]} 29. a3 {[%emt 0:02:00]} a5 {[%emt 0:00:39]} 30. Nd2 {[%emt 0:04:07]} Ne5 {[%emt 0:01:02]} 31. Nb3 {[%emt 0:00:56]} Rd5 {[%emt 0:00:06]} 32. Nd2 {[%emt 0:00:58]} Rd4 {[%emt 0:00:58]} 33. Nb3 {[%emt 0:00:09]} Rc4 {[%emt 0:00:29]} 34. Kd2 {[%emt 0:04:21]} Rxc1 {[%emt 0:00:12]} 35. Nxc1 {[%emt 0:00:08]} Ng4 {[%emt 0:00:41]} 36. h3 {[%emt 0:00:35]} Be3+ {[%emt 0:00:04]} 37. Kc2 {[%emt 0:00:18]} Bxc1 {[%emt 0:00:09]} 38. Kxc1 {[%emt 0:00:07]} Ne3 {[%emt 0:00:06]} 39. Kd2 {[%emt 0:00:34]} Nc4+ {[%emt 0:00:05]} 40. Kc3 {[%emt 0:00:00]} e3 {[%emt 0:00:00]} 41. Kd3 {[%emt 0:00:53]} Nxb2+ {[%emt 0:00:15]} 42. Kxe3 {[%emt 0:00:07]} Nc4+ {[%emt 0:00:05]} 43. Kd3 {[%emt 0:00:17]} Nxa3 {[%emt 0:00:04]} 44. Kc3 {[%emt 0:00:08]} Nb5+ {[%emt 0:00:15]} 45. Kb3 {[%emt 0:00:14]} Nd6 {[%emt 0:00:06]} 46. Kc3 {[%emt 0:00:29]} b5 {[%emt 0:00:07]} 47. Kb3 {[%emt 0:00:22]} f5 {[%emt 0:00:09]} 48. h4 {[%emt 0:00:43]} e5 {[%emt 0:00:04]} 49. Kc3 {[%emt 0:00:42]} e4 {[%emt 0:00:07]} 50. Kd4 {[%emt 0:00:07]} b4 {[%emt 0:00:04]} 51. Kd5 {[%emt 0:00:24]} e3 {[%emt 0:00:09]} 52. Kxd6 {[%emt 0:00:09]} e2 {[%emt 0:00:03]} 53. Kd5 {[%emt 0:00:08]} b3 {[%emt 0:00:05]} 54. Kd4 {[%emt 0:00:26]} b2 {[%emt 0:00:05]} 55. Kc5 {[%emt 0:00:07]} e1=Q {[%emt 0:00:07]} 56. Kd5 {[%emt 0:00:06]} b1=Q {[%emt 0:00:09]} 57. Kc4 {[%emt 0:00:15]} Qd2 {[%emt 0:00:15]} 58. Kc5 {[%emt 0:00:12]} Qbc1+ {[%emt 0:00:11]} 59. Kb5 {[%emt 0:00:15]} Qdb2+ {[%emt 0:00:28]} 60. Ka6 {[%emt 0:01:27]} Qc8+ {[%emt 0:00:13]} 61. Ka7 {[%emt 0:00:07]} Qbb7# {[%emt 0:00:06]} 0-1

[Event "EYCC Girls U10 2018"]
[Site "Riga"]
[Date "2018.08.22"]
[Round "3"]
[White "Shvedova, Alexandra"]
[Black "Zavivaeva, Evelina"]
[Result "1-0"]
[ECO "C03"]
[WhiteElo "1758"]
[BlackElo "1389"]
[Annotator "NA"]
[PlyCount "79"]
[EventDate "2018.08.20"]
[EventType "swiss"]
[EventCountry "LAT"]
[SourceTitle "playchess.com"]
[Source "ChessBase"]
[SourceQuality "1"]
[TimeControl "40/5400+30:1800+30"]

1. e4 {[%emt 0:00:00]} e6 {[%emt 0:00:00]} 2. d4 {[%emt 0:00:00]} d5 {[%emt 0:00:00]} 3. Nd2 {[%emt 0:00:00]} Be7 {[%emt 0:00:00]} 4. Bd3 {[%emt 0:00:08]} c5 {[%emt 0:00:35]} 5. c3 {[%emt 0:00:55]} Nc6 {[%emt 0:01:16]} 6. Ne2 {[%emt 0:01:53]} Nf6 {[%emt 0:02:12]} 7. e5 {[%emt 0:00:18]} Nd7 {[%emt 0:01:01]} 8. O-O {[%emt 0:02:30]} b6 {[%emt 0:02:54]} 9. f4 {[%emt 0:02:38]} g6 {[%emt 0:02:26]} 10. Nf3 {[%emt 0:01:37]} c4 {[%emt 0:07:35]} 11. Bc2 {[%emt 0:05:38]} b5 {[%emt 0:08:52]} 12. Bd2 {[%emt 0:05:34]} a5 {[%emt 0:03:53]} 13. g4 {[%emt 0:08:44]} Nf8 {[%emt 0:11:39]} 14. Ng3 {[%emt 0:02:51]} Qb6 {[%emt 0:11:32]} 15. f5 {[%emt 0:03:35]} gxf5 {[%emt 0:03:19]} 16. gxf5 {[%emt 0:00:17]} exf5 {[%emt 0:03:38]} 17. Bxf5 {[%emt 0:00:35]} Bxf5 {[%emt 0:10:59]} 18. Nxf5 {[%emt 0:02:00]} Rg8+ {[%emt 0:01:11]} 19. Kh1 {[%emt 0:00:16]} O-O-O {[%emt 0:01:15]} 20. Nxe7+ {[%emt 0:02:14]} Nxe7 {[%emt 0:01:14]} 21. Ng5 {[%emt 0:00:55]} Qg6 {[%emt 0:11:55]} 22. Qe2 {[%emt 0:00:59]} Nd7 {[%emt 0:05:42]} 23. Nxf7 {[%emt 0:00:48]} Rdf8 {[%emt 0:00:58]} 24. Nd6+ {[%emt 0:00:09]} Kb8 {[%emt 0:00:50]} 25. Nxb5 {[%emt 0:03:15]} Nf5 {[%emt 0:02:34]} 26. Bf4 {[%emt 0:02:44]} Kb7 {[%emt 0:01:39]} 27. e6 {[%emt 0:03:34]} Re8 {[%emt 0:00:51]} 28. Nc7 {[%emt 0:00:05]} Rc8 {[%emt 0:03:17]} 29. exd7 {[%emt 0:00:07]} Rxc7 {[%emt 0:00:37]} 30. Bxc7 {[%emt 0:00:05]} Kxc7 {[%emt 0:00:08]} 31. Rg1 {[%emt 0:00:41]} Qf7 {[%emt 0:00:15]} 32. Rxg8 {[%emt 0:00:11]} Qxg8 {[%emt 0:00:01]} 33. Qe8 {[%emt 0:00:13]} Qg5 {[%emt 0:01:15]} 34. Qc8+ {[%emt 0:00:05]} Kb6 {[%emt 0:00:13]} 35. d8=Q+ {[%emt 0:00:11]} Qxd8 {[%emt 0:00:17]} 36. Qxd8+ {[%emt 0:00:07]} Kc6 {[%emt 0:00:15]} 37. Re1 {[%emt 0:00:05]} a4 {[%emt 0:00:09]} 38. Re6+ {[%emt 0:00:05]} Nd6 {[%emt 0:00:18]} 39. Rxd6+ {[%emt 0:00:04]} Kb7 {[%emt 0:00:00]} 40. Qb6+ {[%emt 0:00:00]} 1-0

[Event "EYCC Girls U10 2018"]
[Site "Riga"]
[Date "2018.08.22"]
[Round "3"]
[White "Zhapova, Yana"]
[Black "Mikhailina, Olga"]
[Result "1/2-1/2"]
[ECO "C68"]
[WhiteElo "1733"]
[BlackElo "1373"]
[Annotator "NA"]
[PlyCount "83"]
[EventDate "2018.08.20"]
[EventType "swiss"]
[EventCountry "LAT"]
[SourceTitle "playchess.com"]
[Source "ChessBase"]
[SourceQuality "1"]
[TimeControl "40/5400+30:1800+30"]

1. e4 {[%emt 0:00:27]} e5 {[%emt 0:00:00]} 2. Nf3 {[%emt 0:00:12]} Nc6 {[%emt 0:00:00]} 3. Bb5 {[%emt 0:00:38]} a6 {[%emt 0:00:00]} 4. Bxc6 {[%emt 0:00:12]} dxc6 {[%emt 0:00:11]} 5. Nc3 {[%emt 0:00:52]} f6 {[%emt 0:00:26]} 6. d4 {[%emt 0:01:38]} exd4 {[%emt 0:00:15]} 7. Qxd4 {[%emt 0:00:22]} Qxd4 {[%emt 0:00:22]} 8. Nxd4 {[%emt 0:00:12]} Bd7 {[%emt 0:00:18]} 9. Be3 {[%emt 0:00:46]} O-O-O {[%emt 0:00:44]} 10. O-O-O {[%emt 0:00:51]} Ne7 {[%emt 0:00:43]} 11. f3 {[%emt 0:04:11]} Ng6 {[%emt 0:02:18]} 12. Nde2 {[%emt 0:06:58]} Bd6 {[%emt 0:08:01]} 13. Na4 {[%emt 0:22:48]} Kb8 {[%emt 0:23:13]} 14. Nc5 {[%emt 0:00:48]} Rhe8 {[%emt 0:02:50]} 15. Nxd7+ {[%emt 0:19:51]} Rxd7 {[%emt 0:00:15]} 16. Nd4 {[%emt 0:00:06]} Ne5 {[%emt 0:17:48]} 17. c3 {[%emt 0:14:50]} g6 {[%emt 0:09:59]} 18. Bf2 {[%emt 0:02:19]} c5 {[%emt 0:11:00]} 19. Nc2 {[%emt 0:02:06]} c4 {[%emt 0:04:27]} 20. Bd4 {[%emt 0:04:28]} Nd3+ {[%emt 0:03:05]} 21. Kb1 {[%emt 0:00:09]} f5 {[%emt 0:06:44]} 22. exf5 {[%emt 0:03:13]} gxf5 {[%emt 0:00:11]} 23. Ne1 {[%emt 0:03:19]} Nf4 {[%emt 0:01:39]} 24. g3 {[%emt 0:01:24]} Ne2 {[%emt 0:00:33]} 25. Nc2 {[%emt 0:00:24]} Rde7 {[%emt 0:03:36]} 26. Rhe1 {[%emt 0:01:56]} Nxd4 {[%emt 0:01:30]} 27. Rxe7 {[%emt 0:00:10]} Rxe7 {[%emt 0:00:10]} 28. Nxd4 {[%emt 0:00:06]} f4 {[%emt 0:01:08]} 29. g4 {[%emt 0:01:14]} Re8 {[%emt 0:00:43]} 30. Kc2 {[%emt 0:01:11]} c5 {[%emt 0:01:09]} 31. Nf5 {[%emt 0:00:21]} Bc7 {[%emt 0:00:05]} 32. h4 {[%emt 0:00:18]} Re2+ {[%emt 0:00:23]} 33. Rd2 {[%emt 0:00:15]} Re1 {[%emt 0:00:25]} 34. Rf2 {[%emt 0:00:33]} Rg1 {[%emt 0:00:54]} 35. h5 {[%emt 0:00:17]} Kc8 {[%emt 0:00:20]} 36. Nh4 {[%emt 0:02:31]} Bd8 {[%emt 0:00:59]} 37. Ng2 {[%emt 0:00:09]} Bg5 {[%emt 0:00:51]} 38. b3 {[%emt 0:00:58]} b5 {[%emt 0:00:52]} 39. bxc4 {[%emt 0:04:56]} bxc4 {[%emt 0:00:04]} 40. Kb2 {[%emt 0:00:00]} Kb7 {[%emt 0:00:00]} 41. Kc2 {[%emt 0:06:43]} Kb6 42. Kb2 1/2-1/2

[Event "EYCC Girls U10 2018"]
[Site "Riga"]
[Date "2018.08.22"]
[Round "3"]
[White "Svergina, Sofya"]
[Black "Chaban, Roxolana"]
[Result "1-0"]
[ECO "B27"]
[WhiteElo "1657"]
[BlackElo "1327"]
[Annotator "NA"]
[PlyCount "85"]
[EventDate "2018.08.20"]
[EventType "swiss"]
[EventCountry "LAT"]
[SourceTitle "playchess.com"]
[Source "ChessBase"]
[SourceQuality "1"]
[TimeControl "40/5400+30:1800+30"]

1. e4 {[%emt 0:00:00]} c5 {[%emt 0:00:00]} 2. Nf3 {[%emt 0:00:00]} g6 {[%emt 0:00:00]} 3. d4 {[%emt 0:00:00]} cxd4 {[%emt 0:00:00]} 4. Qxd4 {[%emt 0:00:00]} Nf6 {[%emt 0:00:04]} 5. Nc3 {[%emt 0:00:00]} Nc6 {[%emt 0:00:20]} 6. Qa4 {[%emt 0:00:03]} d6 {[%emt 0:01:21]} 7. e5 {[%emt 0:00:16]} dxe5 {[%emt 0:00:32]} 8. Nxe5 {[%emt 0:00:06]} Bd7 {[%emt 0:00:20]} 9. Nxd7 {[%emt 0:00:07]} Qxd7 {[%emt 0:00:23]} 10. Be3 {[%emt 0:00:18]} Bg7 {[%emt 0:01:52]} 11. Rd1 {[%emt 0:00:07]} Qc8 {[%emt 0:06:52]} 12. Be2 {[%emt 0:03:53]} O-O {[%emt 0:03:23]} 13. O-O {[%emt 0:00:27]} Rd8 {[%emt 0:04:11]} 14. Rxd8+ {[%emt 0:01:09]} Nxd8 {[%emt 0:04:00]} 15. Rd1 {[%emt 0:04:40]} Ne6 {[%emt 0:04:30]} 16. Bf3 {[%emt 0:04:24]} Nc5 {[%emt 0:10:47]} 17. Qb5 {[%emt 0:04:20]} Nfd7 {[%emt 0:08:19]} 18. Nd5 {[%emt 0:01:45]} Bf6 {[%emt 0:03:52]} 19. Nxf6+ {[%emt 0:00:38]} exf6 {[%emt 0:00:44]} 20. Bxc5 {[%emt 0:02:41]} Nxc5 {[%emt 0:01:05]} 21. b4 {[%emt 0:00:23]} a6 {[%emt 0:01:58]} 22. Qxc5 {[%emt 0:00:32]} Qxc5 {[%emt 0:01:40]} 23. bxc5 {[%emt 0:00:07]} Rc8 {[%emt 0:02:49]} 24. Rd5 {[%emt 0:00:11]} Re8 {[%emt 0:01:47]} 25. Kf1 {[%emt 0:00:07]} Kg7 {[%emt 0:01:33]} 26. c4 {[%emt 0:01:08]} f5 {[%emt 0:01:09]} 27. c6 {[%emt 0:00:33]} bxc6 {[%emt 0:01:23]} 28. Rd6 {[%emt 0:00:20]} c5 {[%emt 0:01:48]} 29. Rxa6 {[%emt 0:00:19]} h5 {[%emt 0:03:59]} 30. Ra5 {[%emt 0:00:19]} Rc8 {[%emt 0:02:08]} 31. a4 {[%emt 0:00:17]} Rc7 {[%emt 0:03:45]} 32. Rb5 {[%emt 0:00:08]} Ra7 {[%emt 0:03:24]} 33. a5 {[%emt 0:00:07]} Rc7 {[%emt 0:01:17]} 34. Rb7 {[%emt 0:00:06]} Rc8 {[%emt 0:02:35]} 35. Bd5 {[%emt 0:00:06]} Kh6 {[%emt 0:02:19]} 36. Rxf7 {[%emt 0:00:14]} Kg5 {[%emt 0:02:53]} 37. a6 {[%emt 0:00:13]} Kf4 {[%emt 0:02:05]} 38. a7 {[%emt 0:00:07]} Ke5 {[%emt 0:00:25]} 39. Rb7 {[%emt 0:01:07]} Kd4 {[%emt 0:01:47]} 40. Rb8 {[%emt 0:00:00]} Rc7 {[%emt 0:00:00]} 41. a8=Q {[%emt 0:00:26]} Kd3 {[%emt 0:01:54]} 42. Qa3+ {[%emt 0:00:12]} Kd4 {[%emt 0:00:44]} 43. Qe3# {[%emt 0:00:07]} 1-0

[Event "EYCC Girls U10 2018"]
[Site "Riga"]
[Date "2018.08.22"]
[Round "3"]
[White "Shukhman, Anna"]
[Black "Rahimova, Aysel"]
[Result "1-0"]
[ECO "B27"]
[WhiteElo "1577"]
[BlackElo "1303"]
[Annotator "NA"]
[PlyCount "127"]
[EventDate "2018.08.20"]
[EventType "swiss"]
[EventCountry "LAT"]
[SourceTitle "playchess.com"]
[Source "ChessBase"]
[SourceQuality "1"]
[TimeControl "40/5400+30:1800+30"]

1. e4 {[%emt 0:00:00]} c5 {[%emt 0:00:00]} 2. Nf3 {[%emt 0:00:00]} g6 {[%emt 0:00:00]} 3. c3 {[%emt 0:00:00]} d6 {[%emt 0:01:17]} 4. d4 {[%emt 0:00:00]} cxd4 {[%emt 0:00:28]} 5. cxd4 {[%emt 0:00:00]} Bg7 {[%emt 0:00:36]} 6. Nc3 {[%emt 0:00:35]} Nc6 {[%emt 0:00:23]} 7. Bb5 {[%emt 0:00:54]} Bd7 {[%emt 0:01:23]} 8. O-O {[%emt 0:00:32]} a6 {[%emt 0:00:19]} 9. Bc4 {[%emt 0:00:41]} Bg4 {[%emt 0:06:18]} 10. Bxf7+ Kf8 {[%emt 0:08:19]} 11. Bxg8 {[%emt 0:02:47]} Bxf3 {[%emt 0:02:30]} 12. Qxf3+ {[%emt 0:00:28]} Kxg8 {[%emt 0:00:25]} 13. d5 {[%emt 0:01:01]} Nd4 {[%emt 0:04:39]} 14. Qd1 {[%emt 0:00:15]} Qd7 {[%emt 0:03:18]} 15. Be3 {[%emt 0:01:58]} Nb5 {[%emt 0:04:44]} 16. Na4 {[%emt 0:05:09]} Rf8 {[%emt 0:06:13]} 17. Nb6 {[%emt 0:01:33]} Qe8 {[%emt 0:01:09]} 18. a4 {[%emt 0:02:13]} Nc7 {[%emt 0:06:56]} 19. Bd4 {[%emt 0:03:06]} Qf7 {[%emt 0:06:07]} 20. Rc1 {[%emt 0:02:42]} Na8 {[%emt 0:03:34]} 21. Bxg7 {[%emt 0:03:25]} Qxg7 {[%emt 0:03:50]} 22. Qb3 {[%emt 0:00:56]} Qd4 {[%emt 0:01:44]} 23. Nxa8 {[%emt 0:01:14]} Rxa8 {[%emt 0:00:29]} 24. Qxb7 {[%emt 0:00:06]} Kf7 {[%emt 0:00:12]} 25. Qd7 {[%emt 0:03:06]} Qf6 {[%emt 0:01:26]} 26. Rc2 {[%emt 0:01:40]} Rab8 {[%emt 0:05:43]} 27. Qh3 {[%emt 0:01:44]} Rb4 {[%emt 0:01:29]} 28. Rc3 {[%emt 0:03:41]} Rxe4 {[%emt 0:02:03]} 29. Rf3 {[%emt 0:00:07]} Rf4 {[%emt 0:00:30]} 30. Qe6+ {[%emt 0:01:03]} Kf8 {[%emt 0:01:55]} 31. Rxf4 {[%emt 0:00:09]} Qxf4 {[%emt 0:00:18]} 32. Qc8+ {[%emt 0:00:23]} Kg7 {[%emt 0:01:14]} 33. Qxa6 {[%emt 0:00:11]} Qb4 {[%emt 0:00:40]} 34. Qe2 {[%emt 0:01:44]} Re8 {[%emt 0:01:04]} 35. Qc2 {[%emt 0:03:14]} Qb7 {[%emt 0:02:42]} 36. Qc6 {[%emt 0:04:58]} Qb8 {[%emt 0:03:02]} 37. Re1 {[%emt 0:01:35]} Qb4 {[%emt 0:02:04]} 38. Qc3+ {[%emt 0:00:09]} Qxc3 {[%emt 0:00:40]} 39. bxc3 {[%emt 0:00:03]} Kf6 {[%emt 0:01:11]} 40. Ra1 {[%emt 0:00:00]} Ke5 {[%emt 0:00:00]} 41. f3 {[%emt 0:02:15]} Kxd5 {[%emt 0:01:00]} 42. Kf2 {[%emt 0:00:07]} Kc4 {[%emt 0:00:50]} 43. Ra3 {[%emt 0:00:10]} e5 {[%emt 0:01:38]} 44. a5 {[%emt 0:00:44]} Ra8 {[%emt 0:00:54]} 45. Ke3 {[%emt 0:00:31]} Ra6 {[%emt 0:01:04]} 46. f4 {[%emt 0:02:17]} exf4+ {[%emt 0:05:03]} 47. Kxf4 {[%emt 0:00:42]} Kb5 48. Ke4 {[%emt 0:00:26]} Kc4 {[%emt 0:09:12]} 49. g3 {[%emt 0:01:16]} Ra8 {[%emt 0:02:12]} 50. a6 {[%emt 0:00:18]} Ra7 {[%emt 0:00:19]} 51. Ra4+ {[%emt 0:01:59]} Kxc3 {[%emt 0:10:35]} 52. Kd5 {[%emt 0:00:14]} Kb3 {[%emt 0:02:36]} 53. Ra1 {[%emt 0:00:21]} Kb4 {[%emt 0:06:13]} 54. Kc6 {[%emt 0:00:10]} d5 {[%emt 0:02:00]} 55. Kb6 {[%emt 0:00:26]} Rf7 {[%emt 0:01:20]} 56. a7 {[%emt 0:00:10]} Rf6+ {[%emt 0:00:26]} 57. Kc7 {[%emt 0:00:04]} Rf7+ {[%emt 0:00:06]} 58. Kd6 {[%emt 0:00:05]} Rf8 {[%emt 0:00:11]} 59. a8=Q {[%emt 0:00:09]} Rxa8 {[%emt 0:00:46]} 60. Rxa8 {[%emt 0:00:03]} d4 {[%emt 0:00:07]} 61. Ra1 {[%emt 0:00:05]} d3 {[%emt 0:00:47]} 62. Ke5 {[%emt 0:01:05]} Kc3 {[%emt 0:00:18]} 63. Ke4 {[%emt 0:00:06]} Kb2 {[%emt 0:00:33]} 64. Rd1 {[%emt 0:00:07]} 1-0